bitfinex/quotes_SOLUSD_20230120
["timestamp","ask_amount","ask_price","bid_price","bid_amount"]
[1674212372685,1.92,21.194,21.184,10.0]
[1674212373742,1.92,21.194,21.183,35.41]
[1674212374801,18.92,21.194,21.183,35.41]
[1674212375196,18.92,21.194,21.182,35.41]
[1674212376383,18.92,21.194,21.183,10.0]
[1674212377434,1.92,21.194,21.183,10.0]
[1674212377747,1.92,21.194,21.182,35.41]
[1674212377929,18.92,21.194,21.182,35.41]
[1674212379715,10.0,21.193,21.179,35.42]
[1674212379931,18.92,21.192,21.178,35.42]
[1674212380140,10.0,21.191,21.178,35.42]
[1674212380359,18.92,21.19,21.178,35.42]
[1674212381200,18.92,21.19,21.17,15.1]
[1674212381201,20.0,21.189,21.176,35.42]
[1674212381420,35.4,21.188,21.171,35.43]
[1674212381642,38.92,21.187,21.171,35.43]
[1674212381824,45.41,21.186,21.171,35.43]
[1674212382035,10.0,21.184,21.171,35.43]
[1674212382241,18.92,21.183,21.171,35.43]
[1674212384667,1.92,21.183,21.171,35.43]
[1674212384871,20.0,21.187,21.172,10.0]
[1674212385085,0.96,21.186,21.172,10.0]
[1674212385310,0.96,21.186,21.174,10.0]
[1674212385504,10.96,21.186,21.174,10.0]
[1674212386053,17.0,21.185,21.174,10.0]
[1674212386260,0.96,21.184,21.174,10.0]
[1674212389628,0.96,21.184,21.175,35.43]
[1674212389845,0.96,21.184,21.174,10.0]
[1674212391942,0.96,21.184,21.173,35.43]
[1674212392784,0.96,21.184,21.174,10.0]
[1674212392978,0.96,21.184,21.175,35.43]
[1674212393712,0.96,21.184,21.173,35.43]
[1674212395624,0.96,21.184,21.174,10.0]
[1674212396574,0.96,21.184,21.173,35.43]
[1674212399737,0.96,21.184,21.174,10.0]
[1674212400485,0.96,21.184,21.175,35.43]
[1674212400779,10.96,21.185,21.175,35.43]
[1674212401182,10.96,21.185,21.17,15.1]
[1674212401183,37.96,21.184,21.166,10.0]
[1674212401410,37.96,21.184,21.145,6.92936571]
[1674212401411,15.17,21.18,21.154,258.094]
[1674212401597,73.38,21.179,21.154,258.094]
[1674212401807,15.14119,21.178,21.155,45.46]
[1674212402032,73.38,21.177,21.155,45.46]
[1674212402235,0.96,21.176,21.155,45.46]
[1674212402437,0.96,21.175,21.155,45.46]
[1674212402643,0.96,21.174,21.156,10.0]
[1674212402859,0.96,21.173,21.157,35.46]
[1674212403192,0.96,21.172,21.157,35.46]
[1674212403394,0.96,21.171,21.156,45.46]
[1674212403930,0.96,21.171,21.157,20.0]
[1674212404122,0.96,21.17,21.158,35.45]
[1674212404336,0.96,21.169,21.157,20.0]
[1674212404547,0.96,21.168,21.157,20.0]
[1674212404758,0.96,21.168,21.158,10.0]
[1674212405186,17.96,21.169,21.16,10.0]
[1674212405602,17.96,21.169,21.158,10.0]
[1674212405821,0.96,21.168,21.157,30.0]
[1674212406024,0.96,21.167,21.158,35.45]
[1674212406469,0.96,21.167,21.157,30.0]
[1674212407503,0.96,21.166,21.157,30.0]
[1674212407721,0.96,21.167,21.158,10.0]
[1674212407937,0.96,21.167,21.16,10.0]
[1674212408147,0.96,21.168,21.16,10.0]
[1674212408357,1.92,21.168,21.16,10.0]
[1674212409313,0.96,21.168,21.16,10.0]
[1674212409516,30.0,21.177,21.16,10.0]
[1674212409517,45.42,21.176,21.16,10.0]
[1674212409708,45.42,21.176,21.161,35.45]
[1674212409918,45.42,21.176,21.162,10.0]
[1674212410135,10.0,21.176,21.163,35.45]
[1674212410995,0.96,21.175,21.163,35.45]
[1674212411191,20.0,21.177,21.163,35.45]
[1674212411619,20.0,21.178,21.164,10.0]
[1674212411814,20.0,21.178,21.166,10.0]
[1674212412023,20.0,21.178,21.167,35.44]
[1674212412658,20.0,21.179,21.167,35.44]
[1674212413082,10.0,21.178,21.167,35.44]
[1674212413386,20.0,21.177,21.167,35.44]
[1674212414011,17.96,21.176,21.167,35.44]
[1674212414255,10.96,21.175,21.163,35.45]
[1674212414438,17.96,21.174,21.163,35.45]
[1674212415193,0.96,21.173,21.162,45.45]
[1674212415386,0.96,21.172,21.162,45.45]
[1674212415599,0.96,21.171,21.162,10.0]
[1674212415807,0.96,21.17,21.161,45.45]
[1674212419620,0.96,21.171,21.161,45.45]
[1674212419816,17.0,21.172,21.161,45.45]
[1674212420026,0.96,21.171,21.161,45.45]
[1674212420354,35.42,21.179,21.161,45.45]
[1674212420567,20.0,21.178,21.163,10.0]
[1674212420777,20.0,21.179,21.164,52.44]
[1674212421100,20.0,21.179,21.165,10.0]
[1674212421283,20.0,21.179,21.166,35.44]
[1674212421492,10.0,21.178,21.166,35.44]
[1674212421697,20.0,21.177,21.166,35.44]
[1674212421908,20.0,21.177,21.164,35.44]
[1674212422139,20.0,21.177,21.165,10.0]
[1674212422358,20.0,21.18,21.167,10.0]
[1674212423278,17.96,21.179,21.167,10.0]
[1674212423725,20.0,21.178,21.167,10.0]
[1674212423930,35.42,21.18,21.168,35.44]
[1674212424119,45.41,21.186,21.168,35.44]
[1674212424330,45.41,21.186,21.169,10.0]
[1674212424646,94.71734102,21.187,21.17,35.43]
[1674212424882,45.41,21.187,21.17,35.43]
[1674212425067,35.41,21.187,21.17,35.43]
[1674212425395,151.1985,21.189,21.171,10.0]
[1674212425614,20.0,21.188,21.172,35.43]
[1674212425931,20.0,21.188,21.173,10.0]
[1674212426112,20.0,21.188,21.174,35.43]
[1674212426320,10.0,21.187,21.174,35.43]
[1674212426557,17.96,21.186,21.172,35.43]
[1674212426753,0.96,21.185,21.172,35.43]
[1674212426962,0.96,21.184,21.172,35.43]
[1674212427187,0.96,21.183,21.172,35.43]
[1674212427597,0.96,21.182,21.172,35.43]
[1674212427802,0.96,21.181,21.172,35.43]
[1674212428029,0.96,21.18,21.172,35.43]
[1674212428564,0.96,21.181,21.172,35.43]
[1674212428746,0.96,21.183,21.171,10.0]
[1674212428955,0.96,21.182,21.171,10.0]
[1674212431401,0.96,21.182,21.173,10.0]
[1674212432234,0.96,21.182,21.172,35.43]
[1674212432554,0.96,21.181,21.172,35.43]
[1674212432742,0.96,21.181,21.168,35.44]
[1674212432955,0.96,21.18,21.168,35.44]
[1674212433259,0.96,21.18,21.169,10.0]
[1674212433699,0.96,21.179,21.169,10.0]
[1674212433913,0.96,21.178,21.169,10.0]
[1674212434110,0.96,21.179,21.169,10.0]
[1674212434323,0.96,21.18,21.169,10.0]
[1674212434551,0.96,21.179,21.169,10.0]
[1674212434951,0.96,21.179,21.171,10.0]
[1674212435997,65.4,21.188,21.171,10.0]
[1674212436213,30.0,21.188,21.173,10.0]
[1674212436857,45.41,21.187,21.173,10.0]
[1674212437045,45.41,21.187,21.172,35.43]
[1674212437255,10.0,21.185,21.171,10.0]
[1674212437485,53.37,21.184,21.171,10.0]
[1674212437679,17.96,21.184,21.171,10.0]
[1674212437891,0.96,21.183,21.171,10.0]
[1674212438752,0.96,21.182,21.171,10.0]
[1674212438936,0.96,21.181,21.17,35.43]
[1674212441289,0.96,21.181,21.171,10.0]
[1674212442551,0.96,21.181,21.17,35.43]
[1674212442758,0.96,21.18,21.17,35.43]
[1674212442946,0.96,21.179,21.17,35.43]
[1674212443387,0.96,21.179,21.169,10.0]
[1674212443590,0.96,21.179,21.17,35.43]
[1674212443792,0.96,21.178,21.17,35.43]
[1674212444003,0.96,21.177,21.17,35.43]
[1674212445362,0.96,21.177,21.171,10.0]
[1674212445782,35.41,21.186,21.172,18.29409891]
[1674212446000,161.1985,21.189,21.174,10.0]
[1674212446427,161.1985,21.189,21.175,18.29409891]
[1674212447147,18.92,21.186,21.175,18.29409891]
[1674212451264,35.41,21.187,21.175,18.29409891]
[1674212451474,20.0,21.188,21.176,35.42]
[1674212451697,20.0,21.187,21.177,10.0]
[1674212451910,20.0,21.191,21.177,28.29409891]
[1674212452125,20.0,21.191,21.179,10.0]
[1674212452344,35.4,21.192,21.179,10.0]
[1674212452648,35.39,21.195,21.181,10.0]
[1674212452861,10.0,21.195,21.182,35.41]
[1674212453177,10.0,21.195,21.181,63.71409891]
[1674212453492,10.0,21.195,21.181,28.29409891]
[1674212453689,10.0,21.193,21.181,18.29409891]
[1674212453900,10.0,21.191,21.18,35.42]
[1674212454212,18.92,21.19,21.178,35.42]
[1674212455040,18.92,21.19,21.176,10.0]
[1674212455041,10.0,21.189,21.177,35.42]
[1674212455258,38.92,21.188,21.176,10.0]
[1674212457255,21.92,21.188,21.176,10.0]
[1674212457466,0.96,21.188,21.176,10.0]
[1674212457779,18.92,21.189,21.176,10.0]
[1674212457991,20.0,21.188,21.176,10.0]
[1674212459559,20.0,21.191,21.176,10.0]
[1674212459797,35.4,21.192,21.176,10.0]
[1674212459987,35.39,21.194,21.178,10.0]
[1674212460200,35.39,21.194,21.179,35.42]
[1674212460520,35.39,21.194,21.18,10.0]
[1674212460731,35.39,21.195,21.18,10.0]
[1674212461584,17.96,21.194,21.18,10.0]
[1674212461769,18.92,21.194,21.18,10.0]
[1674212461983,35.39,21.195,21.18,10.0]
[1674212462318,35.39,21.199,21.182,10.0]
[1674212462509,15.14,21.21,21.183,57.33]
[1674212462510,143.8877,21.207,21.183,57.33]
[1674212462714,143.8877,21.207,21.183,92.62409891]
[1674212463142,143.8877,21.207,21.183,74.33]
[1674212463356,10.0,21.206,21.184,10.0]
[1674212463562,35.38,21.205,21.185,72.41]
[1674212463772,18.92,21.204,21.185,72.41]
[1674212463995,18.92,21.204,21.186,10.0]
[1674212464205,18.92,21.204,21.187,55.41]
[1674212464396,18.92,21.204,21.188,10.0]
[1674212464606,18.92,21.204,21.189,35.4]
[1674212464817,18.92,21.204,21.19,10.0]
[1674212465021,18.92,21.204,21.191,35.4]
[1674212466709,18.92,21.204,21.19,10.0]
[1674212469231,35.38,21.205,21.19,10.0]
[1674212469453,45.37,21.206,21.19,10.0]
[1674212470697,45.37,21.206,21.191,35.4]
[1674212471136,45.37,21.206,21.19,10.0]
[1674212471343,45.37,21.206,21.189,35.4]
[1674212471556,15.17,21.2,21.185,35.41]
[1674212471768,73.35,21.199,21.183,35.41]
[1674212471960,0.96,21.198,21.181,35.42]
[1674212472170,0.96,21.197,21.181,35.42]
[1674212472486,0.96,21.196,21.181,35.42]
[1674212472702,0.96,21.195,21.181,35.42]
[1674212472914,10.96,21.194,21.181,35.42]
[1674212473123,17.96,21.193,21.181,35.42]
[1674212473457,0.96,21.192,21.181,35.42]
[1674212474189,0.96,21.192,21.18,15.17]
[1674212474190,0.96,21.191,21.18,15.17]
[1674212474398,0.96,21.19,21.178,35.42]
[1674212476397,0.96,21.189,21.178,35.42]
[1674212476711,0.96,21.188,21.177,35.42]
[1674212476920,0.96,21.187,21.171,45.43]
[1674212477244,10.96,21.186,21.171,45.43]
[1674212477447,0.96,21.185,21.171,45.43]
[1674212477643,0.96,21.184,21.171,45.43]
[1674212479985,20.0,21.187,21.173,10.0]
[1674212480192,20.0,21.189,21.174,35.43]
[1674212480389,20.0,21.189,21.174,53.9550687]
[1674212480592,10.0,21.188,21.174,53.9550687]
[1674212480802,20.0,21.187,21.174,53.9550687]
[1674212481019,20.0,21.187,21.175,10.0]
[1674212482689,20.0,21.189,21.176,35.42]
[1674212482906,0.96,21.188,21.177,10.0]
[1674212483129,35.4,21.191,21.177,28.5250687]
[1674212483327,35.39,21.197,21.178,52.42]
[1674212483546,35.39,21.197,21.179,10.0]
[1674212483752,35.39,21.197,21.18,35.42]
[1674212483959,35.39,21.197,21.181,10.0]
[1674212484178,35.39,21.197,21.182,35.41]
[1674212484594,18.92,21.196,21.183,10.0]
[1674212485131,35.39,21.197,21.183,10.0]
[1674212485335,35.39,21.198,21.184,35.41]
[1674212485548,35.39,21.198,21.185,10.0]
[1674212486191,20.0,21.197,21.185,10.0]
[1674212486395,20.96,21.197,21.185,10.0]
[1674212487018,17.96,21.196,21.185,10.0]
[1674212488170,20.0,21.197,21.185,10.0]
[1674212488718,20.0,21.198,21.185,10.0]
[1674212489729,20.0,21.202,21.187,10.0]
[1674212489967,35.38,21.201,21.187,10.0]
[1674212490175,30.0,21.2,21.187,10.0]
[1674212490992,17.0,21.199,21.187,10.0]
[1674212491207,20.0,21.198,21.187,10.0]
[1674212491753,35.38,21.201,21.187,10.0]
[1674212491949,35.38,21.204,21.188,52.4]
[1674212492509,10.0,21.203,21.188,35.4]
[1674212492698,10.0,21.203,21.189,10.0]
[1674212493441,18.92,21.202,21.189,10.0]
[1674212496803,18.92,21.202,21.188,35.4]
[1674212497197,18.92,21.202,21.189,10.0]
[1674212498876,54.3,21.202,21.189,10.0]
[1674212499196,1.92,21.202,21.189,10.0]
[1674212500157,18.92,21.202,21.189,10.0]
[1674212500579,1.92,21.202,21.189,10.0]
[1674212501945,35.38,21.204,21.189,10.0]
[1674212502155,35.38,21.204,21.191,10.0]
[1674212503227,0.96,21.203,21.191,10.0]
[1674212503443,0.96,21.202,21.191,10.0]
[1674212503752,17.96,21.202,21.191,10.0]
[1674212503953,0.96,21.202,21.191,10.0]
[1674212504151,0.96,21.201,21.191,10.0]
[1674212504366,0.96,21.2,21.191,10.0]
[1674212507220,0.96,21.201,21.191,10.0]
[1674212507427,0.96,21.2,21.191,10.0]
[1674212507639,0.96,21.202,21.191,10.0]
[1674212507828,0.96,21.201,21.191,10.0]
[1674212508039,0.96,21.2,21.191,10.0]
[1674212508903,0.96,21.201,21.191,10.0]
[1674212509113,0.96,21.203,21.191,10.0]
[1674212509304,0.96,21.202,21.191,10.0]
[1674212509741,0.96,21.201,21.191,10.0]
[1674212509958,0.96,21.2,21.19,35.4]
[1674212510169,0.96,21.199,21.188,35.4]
[1674212510367,0.96,21.198,21.188,35.4]
[1674212510788,0.96,21.198,21.189,10.0]
[1674212512693,0.96,21.197,21.188,35.4]
[1674212512895,0.96,21.196,21.187,45.41]
[1674212513838,45.38,21.203,21.187,45.41]
[1674212514049,18.92,21.202,21.187,45.41]
[1674212514473,1.92,21.202,21.187,45.41]
[1674212514686,17.0,21.201,21.187,45.41]
[1674212514998,1.92,21.2,21.187,45.41]
[1674212515193,0.96,21.199,21.187,45.41]
[1674212515402,0.96,21.198,21.187,45.41]
[1674212515614,0.96,21.2,21.187,45.41]
[1674212515820,0.96,21.201,21.187,45.41]
[1674212516459,35.38,21.204,21.187,45.41]
[1674212516669,45.37,21.207,21.187,45.41]
[1674212517317,35.37,21.207,21.187,45.41]
[1674212517540,35.37,21.207,21.188,18.92]
[1674212517755,35.37,21.209,21.189,35.4]
[1674212517929,35.37,21.209,21.19,10.0]
[1674212518139,35.37,21.207,21.191,35.4]
[1674212518375,35.37,21.207,21.192,10.0]
[1674212519506,0.96,21.204,21.192,10.0]
[1674212520564,17.96,21.204,21.192,10.0]
[1674212521310,0.96,21.203,21.192,10.0]
[1674212521522,17.96,21.204,21.192,10.0]
[1674212523525,0.96,21.204,21.192,10.0]
[1674212526579,17.96,21.204,21.192,10.0]
[1674212526886,0.96,21.204,21.192,10.0]
[1674212527091,0.96,21.204,21.193,35.4]
[1674212527303,0.96,21.203,21.194,10.0]
[1674212527836,0.96,21.204,21.194,10.0]
[1674212532035,35.37,21.209,21.194,10.0]
[1674212532255,37.96,21.207,21.194,10.0]
[1674212532459,20.0,21.207,21.194,10.0]
[1674212532676,20.0,21.216,21.195,35.39]
[1674212532983,10.0,21.214,21.196,10.0]
[1674212533203,60.50046,21.213,21.196,10.0]
[1674212533390,10.0,21.212,21.196,10.0]
[1674212533603,55.37,21.211,21.196,10.0]
[1674212533808,17.96,21.21,21.196,10.0]
[1674212534023,20.96,21.209,21.196,10.0]
[1674212534255,17.96,21.208,21.196,10.0]
[1674212534445,20.0,21.207,21.196,10.0]
[1674212534656,20.0,21.209,21.196,10.0]
[1674212535186,20.0,21.21,21.196,10.0]
[1674212535393,35.37,21.209,21.196,10.0]
[1674212535598,20.0,21.208,21.194,10.0]
[1674212535809,17.96,21.207,21.194,10.0]
[1674212536255,17.96,21.207,21.196,10.0]
[1674212536439,0.96,21.206,21.196,10.0]
[1674212537703,0.96,21.206,21.194,10.0]
[1674212538029,0.96,21.206,21.192,45.4]
[1674212538251,10.96,21.206,21.192,10.0]
[1674212538433,17.96,21.205,21.192,10.0]
[1674212538644,0.96,21.205,21.192,10.0]
[1674212538855,0.96,21.206,21.192,45.4]
[1674212539798,16.10046,21.206,21.192,35.4]
[1674212540010,53.34,21.205,21.19,10.0]
[1674212540324,0.96,21.204,21.19,10.0]
[1674212540972,40.52046,21.205,21.19,10.0]
[1674212541164,35.37,21.207,21.19,10.0]
[1674212541586,35.37,21.207,21.192,10.0]
[1674212542235,55.37,21.208,21.194,10.0]
[1674212543168,0.96,21.207,21.194,10.0]
[1674212543500,0.96,21.206,21.194,10.0]
[1674212545296,0.96,21.206,21.193,35.4]
[1674212545500,35.37,21.209,21.194,30.0]
[1674212545711,35.36,21.213,21.196,10.0]
[1674212545921,35.36,21.213,21.197,55.39]
[1674212546240,10.0,21.212,21.198,10.0]
[1674212546456,35.37,21.211,21.198,10.0]
[1674212546851,17.96,21.21,21.198,10.0]
[1674212547293,0.96,21.21,21.198,10.0]
[1674212547487,0.96,21.209,21.198,10.0]
[1674212548448,0.96,21.209,21.197,137.9251]
[1674212549082,17.96,21.209,21.197,137.9251]
[1674212549286,0.96,21.208,21.197,137.9251]
[1674212549504,20.96,21.208,21.196,10.0]
[1674212549704,17.0,21.207,21.196,10.0]
[1674212550025,0.96,21.206,21.195,35.39]
[1674212550222,0.96,21.205,21.194,35.39]
[1674212550433,0.96,21.204,21.191,35.4]
[1674212550648,0.96,21.203,21.191,35.4]
[1674212550859,0.96,21.202,21.19,35.4]
[1674212551070,0.96,21.201,21.19,35.4]
[1674212551288,0.96,21.2,21.191,10.0]
[1674212552237,17.0,21.202,21.191,10.0]
[1674212552564,0.96,21.201,21.191,10.0]
[1674212553294,1.92,21.201,21.19,35.4]
[1674212554329,0.96,21.2,21.189,35.4]
[1674212554549,17.96,21.2,21.187,35.41]
[1674212554759,10.96,21.199,21.187,35.41]
[1674212555086,17.96,21.198,21.187,35.41]
[1674212555281,0.96,21.197,21.187,35.41]
[1674212555500,0.96,21.196,21.188,10.0]
[1674212555689,0.96,21.195,21.188,10.0]
[1674212556838,17.0,21.198,21.188,10.0]
[1674212557077,0.96,21.197,21.189,35.4]
[1674212557383,0.96,21.198,21.19,10.0]
[1674212557595,1.92,21.198,21.19,10.0]
[1674212558645,1.92,21.198,21.189,35.4]
[1674212559467,0.96,21.197,21.187,10.0]
[1674212559677,0.96,21.197,21.189,10.0]
[1674212560650,0.96,21.198,21.189,10.0]
[1674212560842,1.92,21.198,21.189,10.0]
[1674212563383,0.96,21.198,21.189,10.0]
[1674212563588,1.92,21.198,21.189,10.0]
[1674212566959,0.96,21.197,21.189,10.0]
[1674212567169,0.96,21.196,21.189,10.0]
[1674212569163,17.0,21.199,21.188,53.91048267]
[1674212569387,35.38,21.203,21.19,18.51048267]
[1674212569585,45.37,21.206,21.191,35.4]
[1674212569793,35.37,21.207,21.192,10.0]
[1674212570009,134.0661,21.208,21.193,35.4]
[1674212570196,134.0661,21.208,21.194,10.0]
[1674212570407,134.0661,21.208,21.195,35.39]
[1674212570635,134.0661,21.208,21.196,10.0]
[1674212571392,20.0,21.208,21.196,10.0]
[1674212571588,20.0,21.208,21.197,18.51048267]
[1674212571788,20.0,21.208,21.198,10.0]
[1674212572742,0.96,21.207,21.198,10.0]
[1674212572944,0.96,21.206,21.198,10.0]
[1674212573274,0.96,21.205,21.198,10.0]
[1674212573576,0.96,21.204,21.198,10.0]
[1674212574736,0.96,21.204,21.196,10.0]
[1674212574931,0.96,21.203,21.196,10.0]
[1674212575160,0.96,21.202,21.196,10.0]
[1674212577167,0.96,21.202,21.195,10.0]
[1674212577383,17.0,21.207,21.195,10.0]
[1674212577695,1.92,21.206,21.195,10.0]
[1674212578516,20.0,21.208,21.195,45.39]
[1674212579791,0.96,21.207,21.195,45.39]
[1674212580117,0.96,21.206,21.195,45.39]
[1674212582215,0.96,21.206,21.195,35.39]
[1674212582426,10.96,21.206,21.195,35.39]
[1674212582638,17.96,21.205,21.195,35.39]
[1674212582848,0.96,21.204,21.195,35.39]
[1674212584309,0.96,21.203,21.193,35.4]
[1674212584507,0.96,21.202,21.19,35.4]
[1674212584718,0.96,21.201,21.191,10.0]
[1674212584935,0.96,21.2,21.192,35.4]
[1674212585159,0.96,21.2,21.19,35.4]
[1674212586433,0.96,21.2,21.191,10.0]
[1674212587999,0.96,21.2,21.192,35.4]
[1674212590533,0.96,21.2,21.19,35.4]
[1674212591051,0.96,21.199,21.19,35.4]
[1674212591268,0.96,21.198,21.19,35.4]
[1674212594319,0.96,21.198,21.191,10.0]
[1674212594720,0.96,21.198,21.19,35.4]
[1674212595458,0.96,21.198,21.191,10.0]
[1674212596861,0.96,21.198,21.19,53.91048267]
[1674212597149,0.96,21.198,21.191,10.0]
[1674212597687,0.96,21.198,21.191,18.51048267]
[1674212603261,0.96,21.198,21.19,35.4]
[1674212603470,0.96,21.198,21.19,53.91048267]
[1674212604518,0.96,21.198,21.191,10.0]
[1674212605678,17.0,21.201,21.191,10.0]
[1674212605896,1.92,21.2,21.191,10.0]
[1674212606626,86.8159536,21.222,21.191,10.0]
[1674212606937,10.0,21.206,21.193,10.0]
[1674212608082,18.92,21.205,21.193,10.0]
[1674212609070,17.0,21.204,21.193,28.51048267]
[1674212609251,0.96,21.203,21.194,35.39]
[1674212609564,1.92,21.205,21.195,10.0]
[1674212615141,1.92,21.205,21.194,35.39]
[1674212615352,18.92,21.205,21.194,35.39]
[1674212616935,1.92,21.205,21.195,10.0]
[1674212620543,1.92,21.205,21.194,35.39]
[1674212621555,11.92,21.205,21.194,35.39]
[1674212621773,17.0,21.204,21.193,35.4]
[1674212622113,1.92,21.203,21.193,35.4]
[1674212622752,1.92,21.203,21.194,10.0]
[1674212624632,1.92,21.203,21.193,35.4]
[1674212624841,1.92,21.203,21.194,10.0]
[1674212628728,1.92,21.203,21.193,35.4]
[1674212633053,1.92,21.203,21.194,10.0]
[1674212634511,0.96,21.203,21.195,35.39]
[1674212634723,0.96,21.203,21.196,10.0]
[1674212636286,20.0,21.208,21.196,10.0]
[1674212636507,17.96,21.207,21.196,10.0]
[1674212636719,18.92,21.207,21.196,10.0]
[1674212640313,18.92,21.207,21.195,35.39]
[1674212640807,18.92,21.207,21.193,35.4]
[1674212641019,18.92,21.207,21.194,10.0]
[1674212643036,18.92,21.207,21.193,35.4]
[1674212643232,24.06046,21.207,21.193,35.4]
[1674212643568,40.51046,21.206,21.188,35.4]
[1674212643777,10.0,21.204,21.188,35.4]
[1674212643961,10.0,21.202,21.188,35.4]
[1674212644178,0.96,21.201,21.188,35.4]
[1674212644388,10.0,21.199,21.188,35.4]
[1674212644710,10.0,21.197,21.186,154.6235]
[1674212644919,1.92,21.196,21.186,119.2135]
[1674212645131,18.92,21.196,21.186,119.2135]
[1674212645552,18.92,21.196,21.183,45.41]
[1674212645768,24.06046,21.196,21.183,35.41]
[1674212646283,10.0,21.195,21.183,35.41]
[1674212646495,24.06046,21.194,21.18,35.42]
[1674212646915,24.06046,21.194,21.183,10.0]
[1674212650298,24.06046,21.194,21.183,28.51048267]
[1674212652501,10.0,21.193,21.182,35.41]
[1674212652820,10.0,21.191,21.178,35.42]
[1674212653006,18.92,21.19,21.178,35.42]
[1674212654480,10.0,21.189,21.178,35.42]
[1674212654817,18.92,21.188,21.177,35.42]
[1674212655019,18.92,21.188,21.178,10.0]
[1674212656069,18.92,21.188,21.177,35.42]
[1674212656478,18.92,21.188,21.178,10.0]
[1674212656808,1.92,21.188,21.178,10.0]
[1674212658492,10.0,21.192,21.178,10.0]
[1674212658807,10.0,21.193,21.18,10.0]
[1674212659007,50.54046,21.193,21.18,10.0]
[1674212659421,40.54046,21.193,21.18,10.0]
[1674212659631,17.0,21.192,21.18,10.0]
[1674212659842,17.96,21.192,21.182,10.0]
[1674212660282,35.39,21.195,21.182,10.0]
[1674212660485,45.39,21.199,21.182,10.0]
[1674212660895,45.39,21.199,21.184,10.0]